fUSD/lending_fUSD_20250522
["ID","MTS","AMOUNT","RATE_DAILY","PERIOD"]
[361996173,1747929038698,-500.0,0.00032875,2]
[361996175,1747929038708,-500.0,0.00032875,2]
[361996177,1747929038717,-500.0,0.00032875,2]
[361996179,1747929038727,-500.0,0.00032875,2]
[361996181,1747929038737,-500.0,0.00032875,2]
[361996183,1747929038747,-500.0,0.00032875,2]
[361996185,1747929038756,-500.0,0.00032875,2]
[361996187,1747929038766,-415.53815013,0.00032875,2]
[361996189,1747929038778,-500.0,0.00032875,2]
[361996191,1747929038787,-500.0,0.00032875,2]
[361996193,1747929038796,-500.0,0.00032875,2]
[361996195,1747929038806,-500.0,0.00032875,2]
[361996197,1747929038816,-500.0,0.00032875,2]
[361996199,1747929038826,-500.0,0.00032875,2]
[361996201,1747929038835,-500.0,0.00032875,2]
[361996203,1747929038845,-500.0,0.00032875,2]
[361996205,1747929038855,-155.85392097,0.00032875,2]
[361996207,1747929038866,-338.73174928,0.00032875,2]
[361996209,1747929038877,-202.56400775,0.00032875,2]
[361996211,1747929038887,-420.0,0.00032876,5]
[361996213,1747929038896,-879.11,0.00032876,5]
[361996215,1747929038906,-420.0,0.00032876,5]
[361996216,1747929038916,-420.0,0.00032876,5]
[361996217,1747929038926,-426.14,0.00032876,5]
[361996218,1747929038935,-420.0,0.00032876,5]
[361996219,1747929038945,-874.96,0.00032876,5]
[361996220,1747929038955,-420.0,0.00032876,5]
[361996221,1747929038966,-420.0,0.00032876,5]
[361996222,1747929038976,-1000.0,0.00032876,5]
[361996223,1747929038986,-471.06,0.00032876,5]
[361996224,1747929038996,-420.0,0.00032876,5]
[361996225,1747929039005,-420.0,0.00032876,5]
[361996226,1747929039014,-523.49,0.00032876,5]
[361996227,1747929039024,-420.0,0.00032876,5]
[361996228,1747929039034,-420.0,0.00032876,5]
[361996229,1747929039043,-420.0,0.00032876,5]
[361996231,1747929039052,-420.0,0.00032876,5]
[361996233,1747929039062,-420.0,0.00032876,5]
[361996235,1747929039071,-558.18,0.00032876,5]
[361996237,1747929039080,-562.42,0.00032876,5]
[361996239,1747929039090,-773.55,0.00032876,5]
[361996241,1747929039100,-581.24,0.00032876,5]
[361996243,1747929039109,-420.0,0.00032876,5]
[361996245,1747929039121,-420.0,0.00032876,5]
[361996247,1747929039131,-420.0,0.00032876,5]
[361996249,1747929039141,-420.0,0.00032876,5]
[361996251,1747929039150,-420.0,0.00032876,5]
[361996253,1747929039161,-439.0,0.00032876,5]
[361996255,1747929039170,-420.0,0.00032876,5]
[361996257,1747929039180,-750.51,0.00032876,5]
[361996259,1747929039190,-420.0,0.00032876,5]
[361996261,1747929039200,-420.0,0.00032876,5]
[361996263,1747929039211,-420.0,0.00032876,5]
[361996265,1747929039220,-169.10029214,0.00032876,30]
[361996267,1747929039229,-420.0,0.00032876,5]
[361996269,1747929039238,-527.11318888,0.00032876,5]
[361996271,1747929039247,-420.0,0.00032876,5]
[361996273,1747929039257,-420.0,0.00032876,5]
[361996275,1747929039266,-420.0,0.00032876,5]
[361996277,1747929039277,-457.41,0.00032876,5]
[361996279,1747929039287,-420.0,0.00032876,5]
[361996281,1747929039297,-420.0,0.00032876,5]
[361996283,1747929039306,-845.55,0.00032876,5]
[361996285,1747929039315,-420.0,0.00032876,5]
[361996287,1747929039325,-420.0,0.00032876,5]
[361996289,1747929039334,-420.0,0.00032876,5]
[361996291,1747929039343,-420.0,0.00032876,5]
[361996293,1747929039353,-602.18,0.00032876,5]
[361996295,1747929039362,-740.88,0.00032876,5]
[361996297,1747929039372,-420.0,0.00032876,5]
[361996299,1747929039382,-420.0,0.00032876,5]
[361996301,1747929039392,-420.0,0.00032876,5]
[361996303,1747929039401,-715.81,0.00032876,5]
[361996305,1747929039411,-420.0,0.00032876,5]
[361996307,1747929039421,-420.0,0.00032876,5]
[361996309,1747929039430,-447.44,0.00032876,5]
[361996311,1747929039440,-420.0,0.00032876,5]
[361996313,1747929039450,-420.0,0.00032876,5]
[361996315,1747929039459,-420.0,0.00032876,5]
[361996317,1747929039469,-420.0,0.00032876,5]
[361996319,1747929039478,-496.06,0.00032876,5]
[361996321,1747929039488,-543.51,0.00032876,5]
[361996323,1747929039497,-420.0,0.00032876,5]
[361996325,1747929039507,-474.55,0.00032876,5]
[361996327,1747929039517,-420.0,0.00032876,5]
[361996329,1747929039527,-420.0,0.00032876,5]
[361996331,1747929039536,-420.0,0.00032876,5]
[361996333,1747929039546,-509.75,0.00032876,5]
[361996335,1747929039555,-420.0,0.00032876,5]
[361996337,1747929039565,-420.0,0.00032876,5]
[361996339,1747929039574,-420.0,0.00032876,5]
[361996341,1747929039584,-420.0,0.00032876,5]
[361996379,1747929039944,-429.45,0.00032876,5]
[361996381,1747929039954,-652.56,0.00032876,5]
[361996383,1747929039963,-480.48,0.00032876,5]
[361996385,1747929039973,-420.0,0.00032876,5]
[361996387,1747929039983,-420.0,0.00032876,5]
[361996389,1747929039993,-329.15,0.00032876,5]
[361996391,1747929040002,-420.0,0.00032876,5]
[361996393,1747929040011,-795.86,0.00032876,5]
[361996395,1747929040021,-420.0,0.00032876,5]
[361996397,1747929040031,-420.0,0.00032876,5]
[361996399,1747929040040,-420.0,0.00032876,5]
[361996401,1747929040050,-420.0,0.00032876,5]
[361996403,1747929040059,-420.0,0.00032876,5]
[361996405,1747929040069,-420.0,0.00032876,5]
[361996407,1747929040078,-420.0,0.00032876,5]
[361996409,1747929040088,-683.41,0.00032876,5]
[361996411,1747929040097,-420.0,0.00032876,5]
[361996413,1747929040107,-560.14,0.00032876,5]
[361996415,1747929040116,-420.0,0.00032876,5]
[361996417,1747929040129,-691.02,0.00032876,5]
[361996419,1747929040138,-454.25,0.00032876,5]
[361996421,1747929040148,-543.2,0.00032876,5]
[361996423,1747929040157,-420.0,0.00032876,5]
[361996425,1747929040167,-607.76,0.00032876,5]
[361996427,1747929040176,-469.82,0.00032876,5]
[361996429,1747929040185,-420.0,0.00032876,5]
[361996431,1747929040195,-715.96,0.00032876,5]
[361996433,1747929040205,-420.0,0.00032876,5]
[361996435,1747929040215,-420.0,0.00032876,5]
[361996437,1747929040225,-420.0,0.00032876,5]
[361996439,1747929040234,-598.43,0.00032876,5]
[361996441,1747929040243,-420.0,0.00032876,5]
[361996442,1747929040253,-420.0,0.00032876,5]
[361996445,1747929040262,-473.4,0.00032876,5]
[361996451,1747929040273,-501.36,0.00032876,5]
[361996455,1747929040282,-420.0,0.00032876,5]
[361996457,1747929040292,-484.03,0.00032876,5]
[361996459,1747929040303,-420.0,0.00032876,5]
[361996461,1747929040312,-420.0,0.00032876,5]
[361996463,1747929040322,-465.57,0.00032876,5]
[361996465,1747929040332,-487.33,0.00032876,5]
[361996467,1747929040341,-420.0,0.00032876,5]
[361996469,1747929040351,-495.86,0.00032876,5]
[361996472,1747929040361,-420.0,0.00032876,5]
[361996473,1747929040370,-420.0,0.00032876,5]
[361996475,1747929040380,-520.74,0.00032876,5]
[361996477,1747929040389,-420.0,0.00032876,5]
[361996479,1747929040399,-689.92,0.00032876,5]
[361996481,1747929040409,-583.88,0.00032876,5]
[361996483,1747929040418,-739.05,0.00032876,5]
[361996485,1747929040428,-628.71,0.00032876,5]
[361996487,1747929040437,-420.0,0.00032876,5]
[361996489,1747929040447,-420.0,0.00032876,5]
[361996491,1747929040456,-454.73,0.00032876,5]
[361996493,1747929040466,-622.26,0.00032876,5]
[361996495,1747929040476,-420.0,0.00032876,5]
[361996497,1747929040485,-476.9,0.00032876,5]
[361996499,1747929040495,-420.0,0.00032876,5]
[361996501,1747929040504,-684.96,0.00032876,5]
[361996503,1747929040513,-420.0,0.00032876,5]
[361996505,1747929040523,-662.41,0.00032876,5]
[361996507,1747929040532,-707.27,0.00032876,5]
[361996509,1747929040542,-420.0,0.00032876,5]
[361996511,1747929040551,-645.53,0.00032876,5]
[361996513,1747929040560,-597.62,0.00032876,5]
[361996515,1747929040570,-468.14,0.00032876,5]
[361996517,1747929040579,-601.68,0.00032876,5]
[361996519,1747929040589,-420.0,0.00032876,5]
[361996521,1747929040598,-420.0,0.00032876,5]
[361996523,1747929040607,-1005.1,0.00032876,5]
[361996525,1747929040617,-420.0,0.00032876,5]
[361996527,1747929040627,-420.0,0.00032876,5]
[361996529,1747929040636,-420.0,0.00032876,5]
[361996531,1747929040645,-313.12292446,0.00032876,5]
[361996533,1747929040654,-577.2,0.00032876,5]
[361996535,1747929040664,-565.75,0.00032876,5]
[361996536,1747929040674,-685.69,0.00032876,5]
[361996538,1747929040683,-420.0,0.00032876,5]
[361996540,1747929040693,-420.0,0.00032876,5]
[361996542,1747929040703,-529.02,0.00032876,5]
[361996544,1747929040713,-420.0,0.00032876,5]
[361996546,1747929040723,-420.0,0.00032876,5]
[361996548,1747929040732,-530.98,0.00032876,5]
[361996550,1747929040741,-571.18,0.00032876,5]
[361996552,1747929040751,-427.43,0.00032876,5]
[361996554,1747929040760,-1285.59,0.00032876,5]
[361996556,1747929040770,-420.0,0.00032876,5]
[361996558,1747929040779,-464.02,0.00032876,5]
[361996560,1747929040789,-420.0,0.00032876,5]
[361996563,1747929040798,-498.3,0.00032876,5]
[361996566,1747929040808,-438.63,0.00032876,5]
[361996568,1747929040818,-766.51,0.00032876,5]
[361996570,1747929040828,-914.79,0.00032876,5]
[361996572,1747929040837,-420.0,0.00032876,5]
[361996574,1747929040846,-420.0,0.00032876,5]
[361996576,1747929040856,-420.0,0.00032876,5]
[361996578,1747929040869,-420.0,0.00032876,5]
[361996580,1747929040879,-817.64,0.00032876,5]
[361996582,1747929040889,-420.0,0.00032876,5]
[361996584,1747929040899,-420.0,0.00032876,5]
[361996586,1747929040909,-420.0,0.00032876,5]
[361996588,1747929040918,-420.0,0.00032876,5]
[361996590,1747929040927,-656.13,0.00032876,5]
[361996592,1747929040937,-420.0,0.00032876,5]
[361996594,1747929040947,-694.22,0.00032876,5]
[361996596,1747929040956,-152.959474,0.00032876,5]
[361996598,1747929040965,-1252.58,0.00032876,5]
[361996600,1747929040975,-700.19,0.00032876,5]
[361996602,1747929040984,-420.0,0.00032876,5]
[361996604,1747929040994,-434.19,0.00032876,5]
[361996606,1747929041003,-420.0,0.00032876,5]
[361996608,1747929041013,-420.0,0.00032876,5]
[361996610,1747929041023,-546.76,0.00032876,5]
[361996612,1747929041032,-522.15,0.00032876,5]
[361996614,1747929041041,-694.91,0.00032876,5]
[361996616,1747929041050,-420.0,0.00032876,5]
[361996618,1747929041060,-550.72,0.00032876,5]
[361996620,1747929041069,-420.0,0.00032876,5]
[361996622,1747929041078,-420.0,0.00032876,5]
[361996624,1747929041087,-434.13,0.00032876,5]
[361996625,1747929041097,-713.54,0.00032876,5]
[361996628,1747929041107,-608.43,0.00032876,5]
[361996629,1747929041117,-420.0,0.00032876,5]
[361996631,1747929041131,-420.0,0.00032876,5]
[361996633,1747929041140,-649.81,0.00032876,5]
[361996635,1747929041149,-150.657276,0.00032876,5]
[361996637,1747929041159,-420.0,0.00032876,5]
[361996639,1747929041169,-420.0,0.00032876,5]
[361996641,1747929041178,-420.0,0.00032876,5]
[361996643,1747929041188,-704.83,0.00032876,5]
[361996645,1747929041198,-420.0,0.00032876,5]
[361996647,1747929041208,-420.0,0.00032876,5]
[361996649,1747929041218,-499.67,0.00032876,5]
[361996651,1747929041227,-429.11,0.00032876,5]
[361996653,1747929041236,-420.0,0.00032876,10]
[361996655,1747929041246,-723.75,0.00032876,5]
[361996657,1747929041256,-422.93,0.00032876,5]
[361996659,1747929041265,-420.0,0.00032876,5]
[361996661,1747929041276,-1275.72,0.00032876,5]
[361996662,1747929041286,-420.0,0.00032876,5]
[361996664,1747929041296,-527.67799979,0.00032876,5]
[361996666,1747929041305,-420.0,0.00032876,5]
[361996668,1747929041315,-420.0,0.00032876,5]
[361996670,1747929041324,-420.0,0.00032876,5]
[361996672,1747929041333,-560.17,0.00032876,5]
[361996674,1747929041343,-486.06,0.00032876,5]
[361996676,1747929041353,-512.37,0.00032876,5]
[361996678,1747929041362,-1458.03,0.00032876,5]
[361996680,1747929041371,-674.11,0.00032876,5]
[361996682,1747929041381,-481.04,0.00032876,5]
[361996684,1747929041390,-594.04,0.00032876,5]
[361996685,1747929041400,-420.0,0.00032876,5]
[361996687,1747929041409,-420.0,0.00032876,5]
[361996689,1747929041419,-420.0,0.00032876,5]
[361996691,1747929041428,-420.0,0.00032876,5]
[361996693,1747929041438,-791.41,0.00032876,5]
[361996695,1747929041447,-420.0,0.00032876,5]
[361996697,1747929041457,-580.04,0.00032876,5]
[361996699,1747929041466,-420.0,0.00032876,5]
[361996701,1747929041475,-564.77,0.00032876,5]
[361996703,1747929041485,-605.02,0.00032876,5]
[361996705,1747929041495,-627.21,0.00032876,5]
[361996707,1747929041504,-469.19,0.00032876,5]
[361996708,1747929041513,-541.20241503,0.00032876,5]
[361996709,1747929041524,-420.0,0.00032876,5]
[361996710,1747929041533,-420.0,0.00032876,5]
[361996711,1747929041542,-420.0,0.00032876,5]
[361996712,1747929041551,-832.37,0.00032876,5]
[361996713,1747929041560,-541.38,0.00032876,5]
[361996714,1747929041571,-420.0,0.00032876,5]
[361996715,1747929041580,-523.02,0.00032876,5]
[361996716,1747929041590,-757.69,0.00032876,5]
[361996717,1747929041600,-420.0,0.00032876,5]
[361996718,1747929041610,-450.77,0.00032876,5]
[361996719,1747929041619,-420.0,0.00032876,5]
[361996720,1747929041629,-420.0,0.00032876,5]
[361996721,1747929041638,-420.0,0.00032876,5]
[361996722,1747929041647,-420.0,0.00032876,5]
[361996723,1747929041656,-788.96,0.00032876,5]
[361996724,1747929041666,-568.89,0.00032876,5]
[361996725,1747929041675,-621.45,0.00032876,5]
[361996726,1747929041685,-420.0,0.00032876,5]
[361996727,1747929041694,-546.48,0.00032876,5]
[361996729,1747929041704,-420.0,0.00032876,5]
[361996730,1747929041713,-476.49,0.00032876,5]
[361996732,1747929041723,-420.0,0.00032876,5]
[361996734,1747929041732,-657.47,0.00032876,5]
[361996736,1747929041741,-420.0,0.00032876,5]
[361996738,1747929041751,-765.3,0.00032876,5]
[361996740,1747929041760,-420.0,0.00032876,5]
[361996742,1747929041769,-500.86,0.00032876,5]
[361996743,1747929041781,-420.0,0.00032876,5]
[361996744,1747929041790,-535.71,0.00032876,5]
[361996745,1747929041800,-420.0,0.00032876,5]
[361996746,1747929041809,-420.0,0.00032876,5]
[361996747,1747929041818,-613.85,0.00032876,5]
[361996748,1747929041827,-461.89,0.00032876,5]
[361996749,1747929041837,-420.0,0.00032876,5]
[361996750,1747929041846,-420.0,0.00032876,5]
[361996751,1747929041856,-803.5,0.00032876,5]
[361996752,1747929041865,-437.87,0.00032876,5]
[361996753,1747929041874,-552.55,0.00032876,5]
[361996754,1747929041884,-420.0,0.00032876,5]
[361996755,1747929041893,-420.0,0.00032876,5]
[361996756,1747929041903,-420.0,0.00032876,5]
[361996757,1747929041912,-502.92,0.00032876,5]
[361996758,1747929041922,-420.0,0.00032876,5]
[361996759,1747929041931,-553.93,0.00032876,5]
[361996760,1747929041941,-420.0,0.00032876,5]
[361996762,1747929041950,-420.0,0.00032876,5]
[361996764,1747929041959,-420.0,0.00032876,5]
[361996765,1747929041969,-420.0,0.00032876,5]
[361996767,1747929041982,-420.0,0.00032876,5]
[361996769,1747929041991,-420.0,0.00032876,5]
[361996771,1747929042001,-1174.93,0.00032876,5]
[361996773,1747929042011,-609.62,0.00032876,5]
[361996775,1747929042020,-420.0,0.00032876,5]
[361996777,1747929042032,-599.29,0.00032876,5]
[361996779,1747929042042,-420.0,0.00032876,5]
[361996781,1747929042052,-420.0,0.00032876,5]
[361996783,1747929042061,-589.9,0.00032876,5]
[361996785,1747929042070,-420.0,0.00032876,5]
[361996787,1747929042080,-526.4239453,0.00032876,5]
[361996789,1747929042089,-809.01,0.00032876,5]
[361996791,1747929042099,-420.0,0.00032876,5]
[361996793,1747929042110,-420.0,0.00032876,5]
[361996795,1747929042123,-533.36,0.00032876,5]
[361996797,1747929042134,-420.0,0.00032876,5]
[361996799,1747929042144,-420.0,0.00032876,5]
[361996801,1747929042153,-420.0,0.00032876,5]
[361996803,1747929042164,-1671.46,0.00032876,5]
[361996805,1747929042174,-454.81251522,0.00032876,5]
[361996807,1747929042183,-420.0,0.00032876,5]
[361996809,1747929042193,-420.0,0.00032876,5]
[361996811,1747929042204,-627.52,0.00032876,5]
[361996813,1747929042214,-668.17,0.00032876,5]
[361996815,1747929042223,-516.48,0.00032876,5]
[361996817,1747929042233,-429.2,0.00032876,5]
[361996819,1747929042242,-420.0,0.00032876,5]
[361996821,1747929042252,-498.92,0.00032876,5]
[361996823,1747929042262,-447.54,0.00032876,5]
[361996825,1747929042271,-622.3,0.00032876,5]
[361996828,1747929042281,-420.0,0.00032876,5]
[361996829,1747929042291,-420.0,0.00032876,5]
[361996831,1747929042301,-482.38,0.00032876,5]
[361996833,1747929042310,-604.34,0.00032876,5]
[361996835,1747929042320,-420.0,0.00032876,5]
[361996837,1747929042329,-420.0,0.00032876,5]
[361996839,1747929042338,-362.85318531,0.00032876,2]
[361996849,1747929042427,-420.0,0.00032876,5]
[361996851,1747929042436,-420.0,0.00032876,5]
[361996853,1747929042446,-420.0,0.00032876,5]
[361996855,1747929042455,-420.0,0.00032876,5]
[361996857,1747929042464,-574.23,0.00032876,5]
[361996859,1747929042474,-420.0,0.00032876,5]
[361996861,1747929042483,-420.0,0.00032876,5]
[361996863,1747929042492,-420.0,0.00032876,5]
[361996865,1747929042502,-481.15,0.00032876,5]
[361996867,1747929042512,-420.0,0.00032876,5]
[361996869,1747929042521,-487.11,0.00032876,5]
[361996871,1747929042531,-687.92,0.00032876,5]
[361996873,1747929042540,-819.74,0.00032876,5]
[361996875,1747929042548,-420.0,0.00032876,5]
[361996876,1747929042558,-420.0,0.00032876,5]
[361996878,1747929042567,-430.91,0.00032876,5]
[361996880,1747929042576,-420.0,0.00032876,5]
[361996882,1747929042585,-420.0,0.00032876,5]
[361996884,1747929042595,-420.0,0.00032876,5]
[361996886,1747929042604,-420.0,0.00032876,5]
[361996888,1747929042614,-805.5,0.00032876,5]
[361996890,1747929042623,-493.29,0.00032876,5]
[361996892,1747929042632,-420.0,0.00032876,5]
[361996894,1747929042641,-420.0,0.00032876,5]
[361996896,1747929042650,-674.74,0.00032876,5]
[361996898,1747929042660,-420.0,0.00032876,5]
[361996900,1747929042669,-420.0,0.00032876,5]
[361996902,1747929042678,-420.0,0.00032876,5]
[361996904,1747929042687,-635.72,0.00032876,5]
[361996906,1747929042697,-420.0,0.00032876,5]
[361996908,1747929042707,-393.58133547,0.00032876,5]
[361996910,1747929042716,-420.0,0.00032876,5]
[361996912,1747929042725,-925.36,0.00032876,5]
[361996914,1747929042734,-420.0,0.00032876,5]
[361996916,1747929042744,-521.3,0.00032876,5]
[361996918,1747929042753,-420.0,0.00032876,5]
[361996920,1747929042762,-420.0,0.00032876,5]
[361996922,1747929042771,-987.91,0.00032876,5]
[361996924,1747929042780,-420.0,0.00032876,5]
[361996926,1747929042789,-420.0,0.00032876,5]
[361996928,1747929042799,-420.0,0.00032876,5]
[361996930,1747929042808,-420.0,0.00032876,5]
[361996931,1747929042817,-420.0,0.00032876,5]
[361996933,1747929042826,-420.0,0.00032876,5]
[361996935,1747929042835,-368.21,0.00032876,5]
[361996937,1747929042844,-300.0,0.00032876,5]
[361996939,1747929042854,-420.0,0.00032876,5]
[361996941,1747929042863,-519.4,0.00032876,5]
[361996943,1747929042872,-420.0,0.00032876,5]
[361996945,1747929042882,-420.0,0.00032876,5]
[361996947,1747929042891,-500.48,0.00032876,5]
[361996949,1747929042900,-420.0,0.00032876,5]
[361996951,1747929042909,-420.0,0.00032876,5]
[361996953,1747929042918,-420.0,0.00032876,5]
[361996955,1747929042927,-420.0,0.00032876,5]
[361996957,1747929042937,-524.26,0.00032876,5]
[361996959,1747929042947,-420.0,0.00032876,5]
[361996961,1747929042956,-420.0,0.00032876,5]
[361996963,1747929042967,-671.53,0.00032876,5]
[361996965,1747929042976,-799.51,0.00032876,5]
[361996967,1747929042985,-420.0,0.00032876,5]
[361996969,1747929042995,-613.43,0.00032876,5]
[361996971,1747929043004,-578.97,0.00032876,5]
[361996973,1747929043013,-420.0,0.00032876,5]
[361996975,1747929043023,-552.95,0.00032876,5]
[361996977,1747929043033,-420.0,0.00032876,5]
[361996979,1747929043043,-420.0,0.00032876,5]
[361996981,1747929043052,-1170.36,0.00032876,5]
[361996983,1747929043061,-420.0,0.00032876,5]
[361996985,1747929043071,-763.24,0.00032876,5]
[361996987,1747929043080,-420.0,0.00032876,5]
[361996989,1747929043089,-420.0,0.00032876,5]
[361996991,1747929043098,-450.19,0.00032876,5]
[361996993,1747929043108,-506.91,0.00032876,5]
[361996995,1747929043121,-785.72,0.00032876,5]
[361996997,1747929043135,-420.0,0.00032876,5]
[361996999,1747929043144,-420.0,0.00032876,5]
[361997001,1747929043153,-420.0,0.00032876,5]
[361997003,1747929043163,-844.86,0.00032876,5]
[361997005,1747929043173,-563.48,0.00032876,5]
[361997007,1747929043183,-420.0,0.00032876,5]
[361997008,1747929043191,-841.43,0.00032876,5]
[361997011,1747929043201,-420.0,0.00032876,5]
[361997012,1747929043211,-420.0,0.00032876,5]
[361997014,1747929043220,-420.0,0.00032876,5]
[361997017,1747929043229,-420.0,0.00032876,5]
[361997020,1747929043238,-363.24405768,0.00032876,5]
[361997023,1747929043248,-420.0,0.00032876,5]
[361997026,1747929043257,-420.0,0.00032876,5]
[361997028,1747929043266,-420.0,0.00032876,5]
[361997031,1747929043275,-420.0,0.00032876,5]
[361997034,1747929043284,-420.0,0.00032876,5]
[361997037,1747929043293,-420.0,0.00032876,5]
[361997040,1747929043303,-420.0,0.00032876,5]
[361997043,1747929043312,-829.4,0.00032876,5]
[361997045,1747929043321,-420.0,0.00032876,5]
[361997047,1747929043330,-420.0,0.00032876,5]
[361997049,1747929043340,-420.0,0.00032876,5]
[361997051,1747929043349,-428.52,0.00032876,5]
[361997053,1747929043358,-420.0,0.00032876,5]
[361997054,1747929043367,-530.59,0.00032876,5]
[361997056,1747929043376,-420.0,0.00032876,5]
[361997058,1747929043386,-420.0,0.00032876,5]
[361997060,1747929043396,-420.0,0.00032876,5]
[361997062,1747929043405,-632.1,0.00032876,5]
[361997064,1747929043415,-659.76,0.00032876,5]
[361997066,1747929043424,-420.0,0.00032876,5]
[361997068,1747929043434,-400.48408987,0.00032876,5]
[361997070,1747929043443,-420.0,0.00032876,5]
[361997072,1747929043452,-420.0,0.00032876,5]
[361997074,1747929043462,-420.0,0.00032876,5]
[361997076,1747929043471,-420.0,0.00032876,5]
[361997078,1747929043480,-420.0,0.00032876,5]
[361997080,1747929043489,-772.29,0.00032876,5]
[361997082,1747929043498,-1082.3,0.00032876,5]
[361997083,1747929043508,-420.0,0.00032876,5]
[361997085,1747929043517,-420.0,0.00032876,5]
[361997087,1747929043528,-420.0,0.00032876,5]
[361997089,1747929043538,-420.0,0.00032876,5]
[361997091,1747929043548,-420.0,0.00032876,5]
[361997093,1747929043557,-420.0,0.00032876,5]
[361997095,1747929043567,-420.0,0.00032876,5]
[361997097,1747929043576,-420.0,0.00032876,5]
[361997099,1747929043586,-420.0,0.00032876,5]
[361997101,1747929043595,-1313.73,0.00032876,5]
[361997103,1747929043604,-554.77393738,0.00032876,5]
[361997105,1747929043614,-539.31,0.00032876,5]
[361997107,1747929043623,-646.59,0.00032876,5]
[361997109,1747929043633,-795.72,0.00032876,5]
[361997111,1747929043644,-420.0,0.00032876,5]
[361997113,1747929043653,-420.0,0.00032876,5]
[361997115,1747929043663,-1858.09,0.00032876,5]
[361997117,1747929043672,-420.0,0.00032876,5]
[361997119,1747929043681,-483.44,0.00032876,5]
[361997121,1747929043691,-420.0,0.00032876,5]
[361997123,1747929043700,-420.0,0.00032876,5]
[361997125,1747929043710,-957.06,0.00032876,5]
[361997127,1747929043719,-633.76,0.00032876,5]
[361997129,1747929043728,-517.87,0.00032876,5]
[361997131,1747929043738,-666.58,0.00032876,5]
[361997133,1747929043747,-420.0,0.00032876,5]
[361997135,1747929043757,-420.0,0.00032876,5]
[361997137,1747929043766,-613.53,0.00032876,5]
[361997139,1747929043777,-420.0,0.00032876,5]
[361997141,1747929043786,-420.0,0.00032876,5]
[361997143,1747929043795,-468.77,0.00032876,5]
[361997145,1747929043804,-730.37,0.00032876,5]
[361997147,1747929043815,-420.0,0.00032876,5]
[361997149,1747929043823,-18867.81,0.00032876,5]
[361997151,1747929043833,-420.0,0.00032876,5]
[361997153,1747929043842,-1102.65,0.00032876,5]
[361997155,1747929043851,-420.0,0.00032876,5]
[361997157,1747929043860,-603.62,0.00032876,5]
[361997159,1747929043870,-420.0,0.00032876,5]
[361997161,1747929043879,-785.77,0.00032876,5]
[361997163,1747929043888,-420.0,0.00032876,5]
[361997166,1747929043898,-496.7,0.00032876,5]
[361997169,1747929043907,-420.0,0.00032876,5]
[361997171,1747929043916,-420.0,0.00032876,5]